Cogmind - Beta 16 --- EXPLORER MODE // 2025.12.10 @ 16:08:09 Player: K.K.Y. Result: Destroyed by OO-UJL(R) with Subdweller Machine Gun Performance ------------- Evolutions (0) 0 Regions Visited (3) 600 Robots Destroyed (18) 90 Value Destroyed (343) 343 Prototype IDs (6) 120 Alien Tech Used (0) 0 Bonus (0) 0 TOTAL SCORE: 1153 Bonus ------- None Cogmind --------- Core Integrity 0/250 Matter 300/300 Energy 230/250 System Corruption 0% Temperature Cool (0) Movement Flying (117) Ox1 Location -10/Subcaves Parts ------- > --- POWER (1) -------- Ion Engine > --- PROPULSION (2) --- Flight Unit Flight Unit > --- UTILITY (3) ------ Improved Heat Sink > --- WEAPON (2) ------- Particle Gun Particle Gun > --- INVENTORY (5) ---- Small Storage Unit Improved Terrain Scanner Small Laser Datajack Mining Laser Peak State ------------ > --- POWER ------------ Ion Engine > --- PROPULSION ------- Flight Unit Flight Unit > --- UTILITY ---------- Improved Heat Sink Targeting Computer > --- WEAPON ----------- Particle Gun Mining Laser > --- INVENTORY -------- Small Storage Unit Improved Terrain Scanner Small Laser Datajack [Rating: 10] Favorites ----------- Power Light Ion Engine Engine Light Ion Engine Propulsion Flight Unit Wheel Wheel Flight Unit Flight Unit Utility Targeting Computer Device Sensor Array Processor Targeting Computer Weapon Medium Laser Energy Gun Medium Laser Special Weapon Mining Laser Build | -11 -10 -10 -10 ------- Run | Yrd Mat Min Sub Slots Evolved 1 | . 1 . . Power . | . . . . Propulsion . | . . . . Utility 1 | . 1 . . Weapon . | . . . . Parts Attached 17 | 6 4 2 5 Power 2 | 1 . . 1 Engine 2 | 1 . . 1 Core . | . . . . Reactor . | . . . . Propulsion 6 | 2 2 2 . Treads . | . . . . Leg . | . . . . Wheel 2 | 2 . . . Hover . | . . . . Flight 4 | . 2 2 . Utility 4 | 2 1 . 1 Device 3 | 1 1 . 1 Storage . | . . . . Processor 1 | 1 . . . Hackware . | . . . . Protection . | . . . . Artifact . | . . . . Weapon 5 | 1 1 . 3 Energy Gun 4 | 1 1 . 2 Energy Cannon . | . . . . Ballistic Gun . | . . . . Ballistic Cannon . | . . . . Launcher . | . . . . Special Weapon 1 | . . . 1 Impact Weapon . | . . . . Slashing Weapon . | . . . . Piercing Weapon . | . . . . Special Melee Weapon . | . . . . Unidentified Prototypes . | . . . . Parts Lost 6 | . 1 . 5 Power 1 | . . . 1 Propulsion 1 | . . . 1 Utility 2 | . . . 2 Weapon 2 | . 1 . 1 Highest Loss Streak 5 | . 1 . 5 To Critical Strikes . | . . . . Average Backups 3 | 1 2 4 5 Power . | . . . . Propulsion . | . . . . Utility 1 | . 1 2 2 Weapon 1 | . . 1 1 Tool/Special . | . . . . Unused Backups 5 | . . 1 4 Power . | . . . . Propulsion . | . . . . Utility 3 | . . 1 2 Weapon 1 | . . . 1 Tool/Special 1 | . . . 1 Average Slot Usage (%) 80 | . 80 87 73 Engine 11 | . 12 12 10 Wheel 1 | . 3 . . Flight 22 | . 20 25 22 Device 18 | . 13 25 15 Processor 10 | . 12 12 5 Energy Gun 15 | . 16 12 19 Peak Build Rating 10 | 6 7 7 10 Average Rating 6 | 3 6 7 8 On Entrance 5 | . 6 7 7 Avg Prop Armor Cover (%) . | . . . . Naked Turns . | . . . . Heaviest Build 12 | 6 8 7 12 Greatest Support 20 | 20 20 8 8 Greatest Overweight (x) 1 | 1 1 . 1 Average Overweight (x) . | . . . . Largest Inventory Capacity 5 | 5 5 5 5 Average Capacity 5 | 5 5 5 5 Most Carried 5 | 4 5 5 5 Average Carried 3 | . 2 4 4 Final Capacity 5 | 5 5 5 5 Final Carried 5 | 1 4 5 5 Class Distribution -------------------- 82% | Hacker-Mutant 17% | Scavenger-Mutant Dominant Class ---------------- Hacker-Mutant | -10/Materials Hacker-Mutant | -10/Mines Scavenger-Mutant | -10/Subcaves Resources | -11 -10 -10 -10 ----------- Run | Yrd Mat Min Sub Matter Collected 375 | 260 45 10 60 Remotely . | . . . . Salvage Created 589 | 136 354 29 70 Parts 31 | 5 21 2 3 Haulers Intercepted 1 | . 1 . . Recyclers Shooed . | . . . . Parts Field Recycled . | . . . . Retrieved Matter . | . . . . Parts Self-Destructed . | . . . . Prevented . | . . . . Parts Restored . | . . . . Kills | -11 -10 -10 -10 ------- Run | Yrd Mat Min Sub Combat Hostiles Destroyed 12 | . 8 2 2 Guns 11 | . 8 2 1 Cannons 1 | . . . 1 Classes Destroyed 7 | 2 4 . 1 Tunneler 2 | 2 . . . Hauler 1 | . 1 . . Recycler 1 | 1 . . . Watcher 2 | . 2 . . Swarmer 6 | . 4 2 . Grunt 4 | . 4 . . Subdweller 2 | . . . 2 Best Kill Streak 5 | 2 5 2 1 Combat Bots Only 4 | . 4 2 1 Max Kills in Single Turn 1 | 1 1 1 1 Gunslinging . | . . . . Exploded . | . . . . Melee . | . . . . Uniques/NPCs Destroyed . | . . . . Combat | -11 -10 -10 -10 -------- Run | Yrd Mat Min Sub Hostile Shots Fired 55 | . 25 3 27 Missed 11 | . 5 1 5 Hits 44 | . 20 2 22 Projectile 44 | . 20 2 22 Critical Strikes 1 | . . . 1 Damage Taken 508 | . 129 13 366 Core 255 | . 53 4 198 Absorbed by Shields . | . . . . Ignored by Resistances 308 | . 85 8 215 Core Remaining (%) 100 | 100 . . . Volleys Fired 66 | 10 26 3 27 Largest 2 | 1 2 1 2 Hottest 130 | 40 90 50 130 Shots Fired 83 | 10 40 3 30 Gun 82 | 10 40 3 29 Cannon . | . . . . Launcher . | . . . . Special 1 | . . . 1 Kinetic . | . . . . Thermal 54 | . 21 3 30 Explosive . | . . . . Electromagnetic 29 | 10 19 . . Robot Hit Streak 15 | 7 15 2 15 Robot Miss Streak 2 | 1 2 . 2 Penetration Max . | . . . . Secondary Targets . | . . . . Shots Hit Robots 71 | 9 33 2 27 Core Hits 26 | 4 17 2 3 Critical Kills . | . . . . Critical Parts Destroyed . | . . . . Critical Strikes 4 | . 4 . . Burn 3 | . 3 . . Corrupt 1 | . 1 . . Melee Attacks . | . . . . Impact . | . . . . Slashing . | . . . . Piercing . | . . . . Sneak Attacks . | . . . . Combat Hostiles . | . . . . Follow-up Attacks . | . . . . Damage Inflicted 1054 | 149 501 36 368 Guns 951 | 118 453 36 344 Cannons . | . . . . Explosions 79 | 31 48 . . Melee . | . . . . Ramming . | . . . . Kinetic . | . . . . Thermal 704 | 31 269 36 368 Explosive . | . . . . Electromagnetic 350 | 118 232 . . Impact . | . . . . Slashing . | . . . . Piercing . | . . . . Highest Corruption . | . . . . Average Corruption . | . . . . Corruption Purged . | . . . . Corruption Blocked . | . . . . Overload Shots . | . . . . Overflow Damage 13 | 13 . . . Projectiles . | . . . . Explosions 13 | 13 . . . Melee . | . . . . Knockbacks . | . . . . Impact . | . . . . Kinetic . | . . . . Secondary . | . . . . Self-Inflicted Damage . | . . . . Shots . | . . . . Rammed . | . . . . Targets Rammed . | . . . . Kicked . | . . . . Crushed . | . . . . Highest Temperature 358 | 20 358 16 150 Average Temperature 104 | 20 119 8 76 Received Heat Transfer 439 | . 96 9 334 Siege Activations . | . . . . Martial Activations . | . . . . Shielding Activations . | . . . . Robots Disrupted . | . . . . Combat Hostiles . | . . . . Robots Corrupted . | . . . . Combat Hostiles . | . . . . Parts Fried 1 | . 1 . . Impact Corruptions . | . . . . Robots Melted . | . . . . Combat Hostiles . | . . . . Parts Melted 4 | . 3 . 1 Heat Transferred 2111 | 50 938 111 1012 Parts Sabotaged . | . . . . Parts Stolen . | . . . . Parts Stripped . | . . . . Power Chain Reactions 2 | 1 1 . . Alert | -11 -10 -10 -10 ------- Run | Yrd Mat Min Sub Maximum Alert Level . | . . . . Low Security (%) 100 | 100 100 100 . Level 1 . | . . . . Level 2 . | . . . . Level 3 . | . . . . Level 4 . | . . . . Level 5 . | . . . . High Security . | . . . . Max Security . | . . . . Peak Influence 90 | 10 90 50 . Initial . | . . . . Average 22 | 1 39 10 . Influence Increases 359 | 15 239 105 . Destroy 0b10 Robot/C 240 | . 160 80 . Destroy 0b10 Robot/NC 30 | 15 15 . . Destroy Leader 56 | . 46 10 . Successful Hack 12 | . 12 . . Destroy Structure 6 | . 6 . . Partial Spotted 15 | . . 15 . Influence Decreases 359 | 15 238 106 . Entered New Map 1 | . . 1 . Time Decay 348 | 15 228 105 . Lost Part 10 | . 10 . . Squads Dispatched 1 | . 1 . . Investigation 1 | . 1 . . Extermination . | . . . . Reinforcement . | . . . . Assault . | . . . . Garrison . | . . . . Intercept . | . . . . Searches Triggered . | . . . . Construction Impeded . | . . . . Haulers Reinforced . | . . . . Active Scanning Responses . | . . . . Cargo Convoy Interrupts . | . . . . Stealth | -11 -10 -10 -10 --------- Run | Yrd Mat Min Sub Distress Signals 2 | . 2 . . Communications Jammed . | . . . . Distress Signals . | . . . . Times Spotted 20 | . 14 3 3 Peak Tracking Total 3 | . 3 2 2 Tactical Retreats . | . . . . Traps | -11 -10 -10 -10 ------- Run | Yrd Mat Min Sub Traps Triggered 1 | . 1 . . Indirectly . | . . . . Trap Hack Attempts . | . . . . Triggered . | . . . . Disarmed . | . . . . Reprogrammed . | . . . . Reused . | . . . . Traps Extracted . | . . . . Installed . | . . . . Triggered . | . . . . Machines | -11 -10 -10 -10 ---------- Run | Yrd Mat Min Sub Machines Disabled . | . . . . Max in Single Turn . | . . . . Machines Repaired . | . . . . Machines Dismantled . | . . . . Machines Sabotaged . | . . . . Overloaded Fab Kills . | . . . . Hacking | -11 -10 -10 -10 --------- Run | Yrd Mat Min Sub Machines Accessed 10 | . 10 . . Terminals 8 | . 8 . . Fabricators . | . . . . Repair Stations . | . . . . Recycling Units 2 | . 2 . . Scanalyzers . | . . . . Garrison Access . | . . . . Total Hacks 27 | . 27 . . Successful 19 | . 19 . . Failed 8 | . 8 . . Catastrophic . | . . . . Database Lockouts . | . . . . Manual 18 | . 18 . . Terminals 24 | . 24 . . Fabricators . | . . . . Repair Stations . | . . . . Recycling Units 3 | . 3 . . Scanalyzers . | . . . . Garrison Access . | . . . . Terminal Hacks 9 | . 9 . . Prototype ID Bank 8 | . 8 . . Locate Traps 1 | . 1 . . Fabricator Hacks . | . . . . Repair Station Hacks . | . . . . Recycling Unit Hacks 2 | . 2 . . Retrieve Components 2 | . 2 . . Scanalyzer . | . . . . Garrison Access Hacks . | . . . . Unauthorized Hacks 8 | . 8 . . Terminals 8 | . 8 . . Botnet 8 | . 8 . . Fabricators . | . . . . Repair Stations . | . . . . Recycling Units . | . . . . Scanalyzers . | . . . . Garrison Access . | . . . . Data Cores Recovered . | . . . . Used . | . . . . Hacking Detections 8 | . 8 . . Full Trace Events 2 | . 2 . . Feedback Events . | . . . . Feedback Blocked . | . . . . Robot Schematics Acquired . | . . . . Robots Built . | . . . . Authchips . | . . . . Time . | . . . . Total Robot Build Rating . | . . . . Part Schematics Acquired . | . . . . Parts Built . | . . . . Authchips . | . . . . Time . | . . . . Total Part Build Rating . | . . . . Part Studies Acquired . | . . . . Parts Repaired . | . . . . Time . | . . . . Parts Recycled . | . . . . Recycled Matter . | . . . . Retrieved Matter . | . . . . Retrieved Components 6 | . 6 . . Parts Scanalyzed . | . . . . Part Schematics Acquired . | . . . . Parts Damaged . | . . . . Bothacking | -11 -10 -10 -10 ------------ Run | Yrd Mat Min Sub Used RIF Installer . | . . . . Robots Hacked . | . . . . Non-combat . | . . . . Combat . | . . . . Robot Hacks Applied . | . . . . Relay Couplers Released . | . . . . Fabnet Peak Effective % . | . . . . Robots Rewired . | . . . . Allies Hacked . | . . . . Hacks Repelled . | . . . . Allies | -11 -10 -10 -10 -------- Run | Yrd Mat Min Sub Total Allies 3 | . . 3 . Largest Group 3 | . . 3 3 Highest-Rated Group 40 | . . 40 40 Highest-Rated Ally 16 | . . 16 16 Total Orders . | . . . . Ally Attacks 20 | . . 9 11 Total Damage 271 | . . 129 142 Kills 2 | . . 2 . Allies Corrupted . | . . . . Allies Melted . | . . . . Intel | -11 -10 -10 -10 ------- Run | Yrd Mat Min Sub Active Infowar (turns) 766 | 58 324 312 72 Sensors 766 | 58 324 312 72 Structural 406 | . 42 312 52 Robot Analysis Total . | . . . . Derelict Logs Recovered 1 | . . . 1 Drone Launches . | . . . . Drone Recoveries . | . . . . Exploration | -11 -10 -10 -10 ------------- Run | Yrd Mat Min Sub Turns Passed 952 | 71 324 312 245 Spaces Moved 1426 | 46 582 657 141 Core 44 | 41 3 . . Treads . | . . . . Legs . | . . . . Wheels 46 | 5 41 . . Hover . | . . . . Flight 1336 | . 538 657 141 Fastest Speed 37 | 50 37 37 37 Average Speed 46 | 82 40 37 103 Slowest Speed 117 | 100 100 37 117 Overloaded Moves . | . . . . Propulsion Burnouts . | . . . . Robots Hopped 3 | . 1 2 . Potential Cave-ins . | . . . . Cave-ins Triggered . | . . . . Exploration Rate (%) 49 | 3 86 99 8 Regions Visited 3 Branch Regions 2 Pre-discovered Areas 1 | . . 1 . Known Exits Taken 3 | 1 1 1 . Unknown Exits Taken . | . . . . Scrap Searched 1 | . . 1 . Spaces Dug . | . . . . Terrain Destroyed 6 | . 6 . . Melee . | . . . . Projectile . | . . . . AOE 6 | . 6 . . Terrain Rammed . | . . . . Walls Destroyed . | . . . . Machines Disabled . | . . . . Actions | -11 -10 -10 -10 --------- Run | Yrd Mat Min Sub Total 1630 | 68 631 721 210 Wait 96 | . 8 57 31 Move 1417 | 45 579 652 141 Hop 3 | . 1 2 . Pick Up 20 | 7 8 2 3 Fast Attach 2 | . . . 2 Attach 15 | 6 5 . 4 Detach 4 | . 2 . 2 Swap 2 | . . 2 . Drop 5 | . 2 3 . Fire 66 | 10 26 3 27 Melee . | . . . . Ram . | . . . . Kick . | . . . . Crush . | . . . . Escape Stasis . | . . . . Rewire . | . . . . Trap . | . . . . Miscellaneous . | . . . . Route ------- -11/Scrapyard -10/Materials (discovered 4 exits: *Mat x2 / *Min x2) -10/Mines (discovered 3 exits: *Mat x2 / *Sub) -10/Subcaves (discovered 1 exit: [*Scr]) History --------- Turn | Location | Event 6 | -11/Scrapyard | Identified exit to Materials 6 | -11/Scrapyard | Discovered exit to Materials (range 15) 72 | -11/Scrapyard | Entered Materials 72 | -10/Materials | Evolved 1 slot: Utility x1 144 | -10/Materials | Identified exit to Mines 144 | -10/Materials | Discovered exit to Mines (range 15) 310 | -10/Materials | Build established: Hacker-Mutant 314 | -10/Materials | Identified exit to Materials 314 | -10/Materials | Discovered exit to Materials (range 10) 371 | -10/Materials | Discovered exit to Mines (range 5) 371 | -10/Materials | Discovered exit to Materials (range 13) 396 | -10/Materials | Entered Mines 422 | -10/Mines | Discovered exit to Materials (range 13) 471 | -10/Mines | Assisted by bots powering up and referring to "LRC-V3" 501 | -10/Mines | Learned location of Storage (-9) 610 | -10/Mines | Discovered exit to Materials (range 7) 651 | -10/Mines | Identified exit to Subcaves 651 | -10/Mines | Discovered exit to Subcaves (range 7) 708 | -10/Mines | Entered Subcaves 708 | -10/Subcaves | Accompanied by 3 allies 709 | -10/Subcaves | Approached by a straggling Scientist 710 | -10/Subcaves | Learned Materials interactive machine intel 725 | -10/Subcaves | Scientist uncovered a shortcut to Scraptown 759 | -10/Subcaves | Core integrity fell below 50% 764 | -10/Subcaves | Lost 3 allies 769 | -10/Subcaves | Core integrity fell below 20% 813 | -10/Subcaves | Lost 5 parts (1p1n2u1w) 829 | -10/Subcaves | A swath of the cavern ceiling suddenly collapsed 886 | -10/Subcaves | A swath of the cavern ceiling suddenly collapsed 953 | -10/Subcaves | Destroyed by OO-UJL(R) with Subdweller Machine Gun Last Messages --------------- 00789_ Acquired Sml. Laser. 00790_ Acquired 10 matter. 00791_ Acquired Ion Engine. 00792_ Subatomizers dissect the Aluminum Leg. 00794_ Acquired 20 matter. 00794_ Acquired Imp. Heat Sink. 00796_ Acquired 10 matter. 00797_ Acquired Particle Gun. 00800_ Discarded Targeting Computer. 00800_ Acquired 10 matter. 00802_ Acquired Particle Gun. 00805_ Subatomizers dissect the Aluminum Leg. 00817_ Acquired 9 matter. 00818_ Acquired 1 matter. 00829_ 10 Matter crushed. A swath of the cavern ceiling suddenly collapses. 00868_ Subatomizers dissect the Aluminum Leg. A swath of the cavern ceiling suddenly collapses. Map ----- +----------------------------------------------------+ | ???????????# ## #"#### ## ###????????????? | | ???????????##???# ####?### ###????????????? | | ??????????????? ?????#### # ##?????????????? | | ?????????????? ##???????### ## #?????????????? | | ????????????# ??????????# > ##?????????????? | | ????????????###???????????# #?????????????? | | ??????????????????????????# #?????????????? | | ??????????????????????????## ##????????????? | | ???????????????????????????## #????????????? | | ????????????????????????????# #????????????? | | ???????????????????????????## #????????????? | | ??????????????????????????## ##????????????? | | ??????????????????????????# #?????????????? | | ??????????????????????????# #?????????????? | | ??????????????????????????## ## #????????????? | | ???????????????????????????# # #????????????? | | ???????????????????????????## ## #????????????? | | ???????????????????????????## ### ###????????????? | | ???????????????????????????# ####??????????????? | | ???????????????????????????## #?????????????????? | | ???????????????????????????# ##?????????????????? | | ????????????????????????#### #??????????????????? | | ???????????????????????## ## ###????????????????? | | ??????????????????????## #????????????????? | | ???????????????""" ### ## #????????????????? | | ???????????????""" R @##### #???????????????? | | ???????????????"""" #??? #???????????????? | | ???????????????""### ### #?? ??????????????? | | ???????????????????# ??#####???# ?????????????? | | ?????????????????? ???????????? ##????????????? | | ????????????????? ?????????????? #?????????????? | | ???????????????? ??????????????? ?????????????? | | ?????????????? ????????????????? #????????????? | | ??????????????# ??????????????????##????????????? | | ??????????????# ????????????????????????????????? | | ??????????????# ?????????????????????????????????? | | ?????????????????????????????????????????????????? | | ?????????????????????????????????????????????????? | | ?????????????????????????????????????????????????? | | ?????????????????????????????????????????????????? | | ?????????????????????????????????????????????????? | | ?????????????????????????????????????????????????? | | ?????????????????????????????????????????????????? | | ?????????????????????????????????????????????????? | | ?????????????????????????????????????????????????? | | ?????????????????????????????????????????????????? | | ?????????????????????????????????????????????????? | | ?????????????????????????????????????????????????? | | ?????????????????????????????????????????????????? | | ?????????????????????????????????????????????????? | +----------------------------------------------------+ Best States ------------- Heat Dissipation 39 Energy Generation 10 Energy Capacity 250 Matter Stores 300 Matter Capacity 300 Sight Range 16 Robot Scan Range 14 Terrain Scan Density 10 Resistance: KI 35 Resistance: TH 35 Resistance: EX 35 Resistance: EM 35 Resistance: I 35 Resistance: S 35 Resistance: P 35 Evasion (%) 62 Targeting Accuracy 5 Offensive Hacking 20 Item Schematics ----------------- None Robot Schematics ------------------ None Fabricated ------------ Nothing Repaired ---------- Nothing Studied --------- None Alien Tech Used ----------------- None Achievements -------------- None Challenges ------------ None Game ------ Seed ArchitectGhostStorage Manual? 0 Play Time 00:11:02 Cumulative 187.4 hours Start 2025.12.10 @ 15:58:35 End 2025.12.10 @ 16:08:09 Sessions 1 Manual Loads 0 Difficulty Explorer Special Mode None Game No. 267 Rogue 0 Adventurer 0 Explorer 267 Win Type - Total 0 Types 0/0/0/0/0/0/0/0/0/0 Lore% 70 Gallery% 67 Achievement% 53 Wizard Run 0 Options --------- Layout 1 ASCII 0 Keyboard 0 Movement Mouse Keybinds 0 Fullscreen 1 Font 24/Smallcaps Map View 50x35 Zoom Use 0% Tactical HUD 1 Map Filters NONE Filters NONE Steam 1 RUN: f537ce45-b85e-431c-80ae-c80659c92083